[Event "EYCC O18-ch 2024"]
[Site "Prague"]
[Date "2024.08.29"]
[Round "7.15"]
[White "Fishchuk, Vladyslav"]
[Black "Anacak, Hasan Gunes"]
[Result "1-0"]
[ECO "B24"]
[WhiteElo "2264"]
[BlackElo "2071"]
[Annotator "RC"]
[PlyCount "99"]
[EventDate "2024.08.19"]
[EventType "swiss"]
[EventCountry "CZE"]
[SourceTitle "playchess.com"]
[Source "ChessBase"]
[SourceQuality "1"]
[TimeControl "5400+30"]

1. e4 {[%emt 0:00:03]} c5 {[%emt 0:02:16]} 2. Nc3 {[%emt 0:00:10]} Nc6 {[%emt 0:00:06]} 3. Bb5 {[%emt 0:00:05]} Nd4 {[%emt 0:00:05]} 4. Nf3 {[%emt 0:00:04]} a6 {[%emt 0:00:14]} 5. Bd3 {[%emt 0:00:05]} g6 {[%emt 0:00:10]} 6. O-O {[%emt 0:00:11]} Bg7 {[%emt 0:00:09]} 7. Re1 {[%emt 0:00:28]} d6 {[%emt 0:01:48]} 8. Nxd4 {[%emt 0:00:17]} Bxd4 {[%emt 0:19:08]} 9. Ne2 {[%emt 0:00:11]} Bg7 {[%emt 0:00:23]} 10. c3 {[%emt 0:00:09]} d5 {[%emt 0:12:11]} 11. Qa4+ {[%emt 0:08:17]} Bd7 {[%emt 0:00:53]} 12. Qa3 {[%emt 0:00:12]} c4 {[%emt 0:11:00]} 13. Bc2 {[%emt 0:00:39]} Nf6 {[%emt 0:00:37]} 14. exd5 {[%emt 0:10:09]} Nxd5 {[%emt 0:01:00]} 15. Be4 {[%emt 0:06:38]} Be6 {[%emt 0:19:15]} 16. Nd4 {[%emt 0:04:24]} O-O {[%emt 0:02:20]} 17. Nxe6 {[%emt 0:01:22]} fxe6 {[%emt 0:00:04]} 18. d3 {[%emt 0:01:23]} cxd3 {[%emt 0:00:59]} 19. Qb3 {[%emt 0:05:55]} Kh8 {[%emt 0:04:40]} 20. Bxd3 {[%emt 0:02:17]} Nxc3 {[%emt 0:04:39]} 21. Bc4 {[%emt 0:07:08]} Nd5 {[%emt 0:02:01]} 22. Rxe6 {[%emt 0:01:16]} Nc7 {[%emt 0:04:10]} 23. Re4 {[%emt 0:03:31]} b5 {[%emt 0:00:29]} 24. Bf1 {[%emt 0:05:46]} Qd5 {[%emt 0:00:59]} 25. Rxe7 {[%emt 0:10:45]} Qxb3 {[%emt 0:09:20]} 26. axb3 {[%emt 0:00:08]} Nd5 {[%emt 0:00:02]} 27. Rd7 {[%emt 0:02:06]} Nb4 {[%emt 0:02:00]} 28. Bd2 {[%emt 0:00:21]} Nc2 {[%emt 0:01:54]} 29. Rc1 {[%emt 0:00:37]} Rac8 {[%emt 0:00:02]} 30. Rxg7 {[%emt 0:02:09]} Kxg7 {[%emt 0:00:51]} 31. Bc3+ {[%emt 0:00:08]} Kh6 {[%emt 0:01:40]} 32. Rxc2 {[%emt 0:00:06]} b4 {[%emt 0:00:29]} 33. Bd2+ {[%emt 0:00:10]} g5 {[%emt 0:00:03]} 34. Rxc8 {[%emt 0:00:15]} Rxc8 {[%emt 0:00:03]} 35. Bxb4 {[%emt 0:00:27]} Rb8 {[%emt 0:00:17]} 36. Bc3 {[%emt 0:00:10]} Rb6 {[%emt 0:00:16]} 37. Bc4 {[%emt 0:00:45]} Kg6 {[%emt 0:00:11]} 38. f3 {[%emt 0:00:36]} h5 {[%emt 0:00:18]} 39. Kf2 {[%emt 0:00:08]} Kf5 {[%emt 0:00:14]} 40. Bd3+ {[%emt 0:00:38]} Ke6 {[%emt 0:00:07]} 41. g3 {[%emt 0:00:40]} Kd6 {[%emt 0:00:28]} 42. f4 {[%emt 0:01:08]} gxf4 {[%emt 0:00:15]} 43. gxf4 {[%emt 0:00:06]} Rxb3 {[%emt 0:01:22]} 44. Bxa6 {[%emt 0:00:10]} Kd5 {[%emt 0:00:19]} 45. f5 {[%emt 0:00:38]} Rb6 {[%emt 0:01:28]} 46. Bd3 {[%emt 0:00:12]} h4 {[%emt 0:00:15]} 47. f6 {[%emt 0:00:12]} Rb7 {[%emt 0:00:33]} 48. Kf3 {[%emt 0:00:12]} Ke6 {[%emt 0:00:31]} 49. Bc4+ {[%emt 0:00:17]} Kf5 {[%emt 0:00:10]} 50. f7 {[%emt 0:00:15]} 1-0

[Event "EYCC O18-ch 2024"]
[Site "Prague"]
[Date "2024.08.29"]
[Round "7.16"]
[White "Kovalskyi, Roman"]
[Black "Kutowski, Marcel"]
[Result "1/2-1/2"]
[ECO "B10"]
[WhiteElo "2108"]
[BlackElo "2263"]
[Annotator "RC"]
[PlyCount "100"]
[EventDate "2024.08.19"]
[EventType "swiss"]
[EventCountry "CZE"]
[SourceTitle "playchess.com"]
[Source "ChessBase"]
[SourceQuality "1"]
[TimeControl "5400+30"]

1. e4 {[%emt 0:06:48]} c6 {[%emt 0:00:03]} 2. Nc3 {[%emt 0:02:54]} d5 {[%emt 0:00:06]} 3. Nf3 {[%emt 0:00:02]} dxe4 {[%emt 0:00:07]} 4. Nxe4 {[%emt 0:00:04]} Nf6 {[%emt 0:00:05]} 5. Qe2 {[%emt 0:00:03]} Nxe4 {[%emt 0:00:06]} 6. Qxe4 {[%emt 0:00:02]} Nd7 {[%emt 0:00:07]} 7. Bc4 {[%emt 0:00:06]} Nf6 {[%emt 0:00:02]} 8. Qf4 {[%emt 0:00:04]} Qd6 {[%emt 0:09:37]} 9. d3 {[%emt 0:02:12]} Qxf4 {[%emt 0:03:20]} 10. Bxf4 {[%emt 0:00:07]} Bf5 {[%emt 0:00:57]} 11. O-O {[%emt 0:03:42]} Nd5 {[%emt 0:06:14]} 12. Be3 {[%emt 0:04:44]} e6 {[%emt 0:03:30]} 13. Bd4 {[%emt 0:06:24]} f6 {[%emt 0:03:04]} 14. Rfe1 {[%emt 0:04:24]} Kd7 {[%emt 0:01:55]} 15. Nd2 {[%emt 0:14:22]} e5 {[%emt 0:03:25]} 16. Be3 {[%emt 0:00:06]} Nxe3 {[%emt 0:09:21]} 17. fxe3 {[%emt 0:01:38]} b5 {[%emt 0:04:14]} 18. Bb3 {[%emt 0:00:07]} Bb4 {[%emt 0:01:31]} 19. Re2 {[%emt 0:01:19]} Kc7 {[%emt 0:07:52]} 20. Rf2 {[%emt 0:02:11]} Bg6 {[%emt 0:01:06]} 21. Nf3 {[%emt 0:04:53]} Bc5 {[%emt 0:05:10]} 22. Re1 {[%emt 0:02:54]} e4 {[%emt 0:02:50]} 23. Nh4 {[%emt 0:00:03]} exd3 {[%emt 0:02:00]} 24. Nxg6 {[%emt 0:01:17]} d2 {[%emt 0:05:13]} 25. Rxd2 {[%emt 0:00:06]} hxg6 {[%emt 0:00:04]} 26. h3 {[%emt 0:03:53]} Rae8 {[%emt 0:03:09]} 27. Kf2 {[%emt 0:00:48]} Re7 {[%emt 0:00:38]} 28. Rd3 {[%emt 0:01:58]} Rh4 {[%emt 0:01:42]} 29. Kf3 {[%emt 0:02:03]} f5 {[%emt 0:01:56]} 30. Rd2 {[%emt 0:03:08]} Rhe4 {[%emt 0:03:42]} 31. Rde2 {[%emt 0:01:49]} g5 {[%emt 0:00:07]} 32. g4 {[%emt 0:04:34]} g6 {[%emt 0:01:55]} 33. c3 {[%emt 0:10:14]} Rh7 {[%emt 0:00:33]} 34. Bc2 {[%emt 0:01:13]} Re5 {[%emt 0:09:34]} 35. Kg2 {[%emt 0:00:49]} Rh4 {[%emt 0:00:15]} 36. gxf5 {[%emt 0:04:30]} gxf5 {[%emt 0:00:05]} 37. Bd3 {[%emt 0:00:07]} Kd6 {[%emt 0:02:03]} 38. Rf1 {[%emt 0:02:39]} Ke6 {[%emt 0:05:47]} 39. Ref2 {[%emt 0:00:21]} f4 {[%emt 0:01:09]} 40. exf4 {[%emt 0:02:13]} gxf4 {[%emt 0:00:39]} 41. Rxf4 {[%emt 0:02:48]} Rg5+ {[%emt 0:00:04]} 42. Rg4 {[%emt 0:00:07]} Rhxg4+ {[%emt 0:00:02]} 43. hxg4 {[%emt 0:00:07]} Rxg4+ {[%emt 0:00:02]} 44. Kf3 {[%emt 0:01:32]} Rg7 {[%emt 0:00:04]} 45. Be4 {[%emt 0:01:37]} Kd6 {[%emt 0:00:49]} 46. Rd1+ {[%emt 0:00:38]} Kc7 {[%emt 0:00:05]} 47. Ke2 {[%emt 0:00:37]} Rg4 {[%emt 0:01:06]} 48. Bf3 {[%emt 0:01:18]} Rg6 {[%emt 0:01:00]} 49. Rh1 {[%emt 0:00:47]} Re6+ {[%emt 0:00:11]} 50. Kd2 {[%emt 0:00:06]} Re7 1/2-1/2

[Event "EYCC O18-ch 2024"]
[Site "Prague"]
[Date "2024.08.29"]
[Round "7.17"]
[White "Ristic, Luka"]
[Black "Gasparyan, Erik R."]
[Result "1/2-1/2"]
[ECO "A20"]
[WhiteElo "2274"]
[BlackElo "2350"]
[Annotator "RC"]
[PlyCount "93"]
[EventDate "2024.08.19"]
[EventType "swiss"]
[EventCountry "CZE"]
[SourceTitle "playchess.com"]
[Source "ChessBase"]
[SourceQuality "1"]
[TimeControl "5400+30"]

1. c4 {[%emt 0:00:54]} e5 {[%emt 0:02:52]} 2. g3 {[%emt 0:00:41]} c6 {[%emt 0:01:28]} 3. Nf3 {[%emt 0:02:11]} e4 {[%emt 0:03:01]} 4. Nd4 {[%emt 0:00:34]} d5 {[%emt 0:00:22]} 5. d3 {[%emt 0:01:41]} Nf6 {[%emt 0:05:10]} 6. Bg2 {[%emt 0:00:32]} Bc5 {[%emt 0:19:47]} 7. Nb3 {[%emt 0:00:37]} Bb4+ {[%emt 0:01:00]} 8. Bd2 {[%emt 0:00:28]} Bxd2+ {[%emt 0:00:09]} 9. Qxd2 {[%emt 0:00:17]} exd3 {[%emt 0:00:29]} 10. Qxd3 {[%emt 0:06:45]} dxc4 {[%emt 0:02:33]} 11. Qxc4 {[%emt 0:00:16]} O-O {[%emt 0:00:14]} 12. O-O {[%emt 0:00:57]} Be6 {[%emt 0:01:04]} 13. Qc2 {[%emt 0:02:11]} Na6 {[%emt 0:04:16]} 14. N1d2 {[%emt 0:13:16]} Qe7 {[%emt 0:05:15]} 15. a3 {[%emt 0:09:03]} Rfd8 {[%emt 0:04:07]} 16. e3 {[%emt 0:06:26]} Rd7 {[%emt 0:06:14]} 17. Nd4 {[%emt 0:12:43]} Bd5 {[%emt 0:03:25]} 18. b4 {[%emt 0:05:10]} Bxg2 {[%emt 0:10:40]} 19. Kxg2 {[%emt 0:00:08]} Nc7 {[%emt 0:01:45]} 20. N2b3 {[%emt 0:04:34]} Ncd5 {[%emt 0:04:39]} 21. Nc5 {[%emt 0:01:56]} Rdd8 {[%emt 0:00:06]} 22. Rad1 {[%emt 0:05:04]} Qc7 {[%emt 0:08:20]} 23. e4 Nb6 24. Nf5 {[%emt 0:03:36]} Nbd7 {[%emt 0:02:24]} 25. Nd6 {[%emt 0:07:43]} Nxc5 {[%emt 0:02:46]} 26. bxc5 {[%emt 0:00:14]} b6 {[%emt 0:00:26]} 27. e5 {[%emt 0:01:06]} Nd7 {[%emt 0:01:26]} 28. cxb6 {[%emt 0:04:29]} axb6 {[%emt 0:00:03]} 29. Qf5 {[%emt 0:03:24]} Nc5 {[%emt 0:00:35]} 30. Rd4 {[%emt 0:00:49]} Qe7 {[%emt 0:04:12]} 31. Rh4 {[%emt 0:01:17]} g6 {[%emt 0:00:37]} 32. Qf3 {[%emt 0:00:33]} f6 {[%emt 0:01:50]} 33. Qxc6 {[%emt 0:04:42]} Qxe5 {[%emt 0:00:04]} 34. Nc4 {[%emt 0:00:08]} Qe6 {[%emt 0:02:18]} 35. Qc7 {[%emt 0:00:11]} Nd7 {[%emt 0:01:57]} 36. Nd6 {[%emt 0:01:08]} Nf8 {[%emt 0:00:21]} 37. Rd1 {[%emt 0:00:34]} Rd7 {[%emt 0:00:42]} 38. Qxb6 {[%emt 0:00:46]} Rxa3 {[%emt 0:00:52]} 39. Re4 {[%emt 0:01:21]} Qb3 {[%emt 0:00:03]} 40. Qxb3+ {[%emt 0:01:10]} Rxb3 {[%emt 0:00:05]} 41. Ree1 {[%emt 0:00:05]} Rb8 {[%emt 0:02:06]} 42. Ne4 {[%emt 0:00:18]} Rxd1 {[%emt 0:00:40]} 43. Rxd1 {[%emt 0:00:04]} f5 {[%emt 0:00:14]} 44. Ng5 {[%emt 0:00:46]} Kg7 {[%emt 0:00:27]} 45. Rc1 {[%emt 0:00:20]} Rb7 {[%emt 0:00:13]} 46. Rc6 {[%emt 0:00:29]} Re7 {[%emt 0:00:08]} 47. Ra6 {[%emt 0:00:21]} 1/2-1/2

[Event "EYCC O18-ch 2024"]
[Site "Prague"]
[Date "2024.08.29"]
[Round "7.18"]
[White "Baranciuc, Alexandr"]
[Black "Loftgaard, Mikkel Vinh"]
[Result "1/2-1/2"]
[ECO "A13"]
[WhiteElo "2332"]
[BlackElo "2227"]
[Annotator "RC"]
[PlyCount "56"]
[EventDate "2024.08.19"]
[EventType "swiss"]
[EventCountry "CZE"]
[SourceTitle "playchess.com"]
[Source "ChessBase"]
[SourceQuality "1"]
[TimeControl "5400+30"]

1. c4 {[%emt 0:00:11]} e6 {[%emt 0:00:02]} 2. Nf3 {[%emt 0:00:15]} Nf6 {[%emt 0:00:06]} 3. b3 {[%emt 0:00:17]} d5 {[%emt 0:00:06]} 4. Bb2 {[%emt 0:00:05]} Be7 {[%emt 0:00:06]} 5. g3 {[%emt 0:00:05]} O-O {[%emt 0:00:05]} 6. Bg2 {[%emt 0:00:03]} c5 {[%emt 0:00:22]} 7. e3 {[%emt 0:00:05]} Nc6 {[%emt 0:00:07]} 8. O-O {[%emt 0:00:08]} b6 {[%emt 0:00:31]} 9. Nc3 {[%emt 0:00:05]} Bb7 {[%emt 0:00:16]} 10. cxd5 {[%emt 0:00:10]} exd5 {[%emt 0:00:39]} 11. d4 {[%emt 0:00:01]} Ne4 {[%emt 0:04:03]} 12. dxc5 {[%emt 0:02:36]} Nxc3 {[%emt 0:01:10]} 13. Bxc3 {[%emt 0:00:02]} bxc5 {[%emt 0:00:01]} 14. Qd2 {[%emt 0:00:16]} Qd7 {[%emt 0:00:31]} 15. Qb2 {[%emt 0:03:39]} Qg4 {[%emt 0:04:44]} 16. h3 {[%emt 0:06:19]} Qg6 {[%emt 0:01:50]} 17. Rfd1 {[%emt 0:00:09]} Rfd8 {[%emt 0:00:56]} 18. Rac1 {[%emt 0:03:34]} Bf8 {[%emt 0:08:37]} 19. Ne1 {[%emt 0:02:16]} Ne7 {[%emt 0:04:31]} 20. Nd3 {[%emt 0:01:30]} Qb6 {[%emt 0:00:51]} 21. Nf4 {[%emt 0:12:35]} Rac8 {[%emt 0:07:10]} 22. b4 {[%emt 0:09:52]} d4 {[%emt 0:05:28]} 23. exd4 {[%emt 0:17:56]} cxd4 {[%emt 0:00:08]} 24. Rxd4 {[%emt 0:04:06]} Rxd4 {[%emt 0:05:56]} 25. Bxd4 {[%emt 0:00:01]} Rxc1+ {[%emt 0:00:18]} 26. Qxc1 {[%emt 0:00:01]} Qxd4 {[%emt 0:00:18]} 27. Bxb7 {[%emt 0:00:02]} Qxb4 {[%emt 0:00:12]} 28. Bf3 {[%emt 0:00:09]} Nf5 {[%emt 0:03:06]} 1/2-1/2

[Event "EYCC O18-ch 2024"]
[Site "Prague"]
[Date "2024.08.30"]
[Round "8.1"]
[White "Pyrih, Roman"]
[Black "Nastore, Pavel-Alexandru"]
[Result "0-1"]
[ECO "B92"]
[WhiteElo "2422"]
[BlackElo "2233"]
[Annotator "RC"]
[PlyCount "74"]
[EventDate "2024.08.19"]
[EventType "swiss"]
[EventCountry "CZE"]
[SourceTitle "playchess.com"]
[Source "ChessBase"]
[SourceQuality "1"]
[TimeControl "5400+30"]

1. e4 {[%emt 0:00:03]} c5 {[%emt 0:00:19]} 2. Nf3 {[%emt 0:00:04]} d6 {[%emt 0:00:02]} 3. d4 {[%emt 0:00:04]} cxd4 {[%emt 0:00:03]} 4. Nxd4 {[%emt 0:00:02]} Nf6 {[%emt 0:00:05]} 5. Nc3 {[%emt 0:00:02]} a6 {[%emt 0:00:04]} 6. Be2 {[%emt 0:00:03]} e5 {[%emt 0:00:06]} 7. Nb3 {[%emt 0:00:01]} Be7 {[%emt 0:00:10]} 8. Qd3 {[%emt 0:00:03]} O-O {[%emt 0:00:35]} 9. O-O {[%emt 0:00:07]} Be6 {[%emt 0:00:14]} 10. Bd2 {[%emt 0:00:22]} Nbd7 {[%emt 0:00:18]} 11. Nd5 {[%emt 0:00:02]} Bxd5 {[%emt 0:00:09]} 12. exd5 {[%emt 0:00:05]} Qc8 {[%emt 0:07:31]} 13. c4 {[%emt 0:01:01]} e4 {[%emt 0:06:55]} 14. Qg3 {[%emt 0:00:40]} Ne5 {[%emt 0:01:41]} 15. Rac1 {[%emt 0:00:19]} Qf5 {[%emt 0:03:01]} 16. Bc3 {[%emt 0:02:30]} Nfd7 {[%emt 0:03:56]} 17. f4 {[%emt 0:00:23]} exf3 {[%emt 0:00:09]} 18. gxf3 {[%emt 0:00:12]} Nf6 {[%emt 0:13:09]} 19. Nd4 {[%emt 0:00:39]} Qc8 {[%emt 0:02:45]} 20. Qg2 {[%emt 0:00:21]} Ng6 {[%emt 0:04:29]} 21. f4 {[%emt 0:00:11]} Re8 {[%emt 0:02:34]} 22. Bd3 {[%emt 0:16:46]} Nh4 {[%emt 0:10:26]} 23. Qf2 {[%emt 0:00:38]} Ng4 {[%emt 0:02:35]} 24. Qg3 {[%emt 0:00:02]} Bf6 {[%emt 0:01:32]} 25. Ne6 {[%emt 0:00:01]} fxe6 {[%emt 0:03:19]} 26. Qxg4 {[%emt 0:00:04]} exd5 {[%emt 0:06:24]} 27. f5 {[%emt 0:05:55]} Qc5+ {[%emt 0:12:11]} 28. Kh1 {[%emt 0:01:01]} h5 {[%emt 0:01:37]} 29. Bxf6 {[%emt 0:11:59]} hxg4 {[%emt 0:00:05]} 30. Bxh4 {[%emt 0:00:03]} Qe3 {[%emt 0:02:31]} 31. Rcd1 {[%emt 0:00:29]} Rac8 {[%emt 0:00:33]} 32. cxd5 {[%emt 0:00:24]} Rc1 {[%emt 0:03:38]} 33. Rxc1 {[%emt 0:00:43]} Qxd3 {[%emt 0:00:04]} 34. Rcd1 {[%emt 0:03:27]} Qh3 {[%emt 0:00:12]} 35. Bf2 {[%emt 0:00:01]} g3 {[%emt 0:02:42]} 36. Bxg3 {[%emt 0:00:02]} Re2 {[%emt 0:00:04]} 37. Rg1 {[%emt 0:00:05]} Qg4 {[%emt 0:00:47]} 0-1

[Event "EYCC O18-ch 2024"]
[Site "Prague"]
[Date "2024.08.30"]
[Round "8.1"]
[White "Sahakyan, Aleks"]
[Black "Pasztor, Balazs"]
[Result "1/2-1/2"]
[ECO "C65"]
[WhiteElo "2287"]
[BlackElo "2402"]
[Annotator "RC"]
[PlyCount "68"]
[EventDate "2024.08.19"]
[EventType "swiss"]
[EventCountry "CZE"]
[SourceTitle "playchess.com"]
[Source "ChessBase"]
[SourceQuality "1"]
[TimeControl "5400+30"]

1. e4 {[%emt 0:00:03]} e5 {[%emt 0:00:08]} 2. Nf3 {[%emt 0:00:03]} Nc6 {[%emt 0:00:06]} 3. Bb5 {[%emt 0:00:03]} Nf6 {[%emt 0:00:16]} 4. d3 {[%emt 0:00:05]} Bc5 {[%emt 0:00:20]} 5. Nbd2 {[%emt 0:00:04]} O-O {[%emt 0:01:38]} 6. Nb3 {[%emt 0:00:03]} Bb6 {[%emt 0:07:33]} 7. Bxc6 {[%emt 0:00:05]} bxc6 {[%emt 0:01:28]} 8. Nxe5 {[%emt 0:00:02]} d5 {[%emt 0:04:11]} 9. O-O {[%emt 0:00:02]} Re8 {[%emt 0:08:07]} 10. Bf4 {[%emt 0:22:56]} dxe4 {[%emt 0:05:01]} 11. c4 {[%emt 0:01:23]} a5 {[%emt 0:09:53]} 12. c5 {[%emt 0:04:15]} a4 {[%emt 0:08:40]} 13. cxb6 {[%emt 0:06:32]} axb3 {[%emt 0:01:48]} 14. b7 {[%emt 0:09:58]} Bxb7 {[%emt 0:00:42]} 15. Qxb3 {[%emt 0:00:50]} Ba6 {[%emt 0:16:51]} 16. Qxf7+ {[%emt 0:22:02]} Kh8 {[%emt 0:00:07]} 17. Nxc6 {[%emt 0:00:40]} Qd5 {[%emt 0:04:43]} 18. Qxd5 {[%emt 0:06:09]} Nxd5 {[%emt 0:00:06]} 19. Bd2 {[%emt 0:00:10]} exd3 {[%emt 0:03:53]} 20. Rfe1 {[%emt 0:02:38]} Rxe1+ {[%emt 0:05:19]} 21. Rxe1 {[%emt 0:00:09]} Bb5 {[%emt 0:01:19]} 22. Nd4 {[%emt 0:04:25]} Bd7 {[%emt 0:01:26]} 23. Nb3 {[%emt 0:02:34]} Rxa2 {[%emt 0:02:42]} 24. Nc5 {[%emt 0:00:21]} Bb5 {[%emt 0:01:00]} 25. Nxd3 {[%emt 0:00:43]} Kg8 {[%emt 0:01:56]} 26. Nf4 {[%emt 0:01:34]} Nxf4 {[%emt 0:02:00]} 27. Bxf4 {[%emt 0:00:30]} Rxb2 {[%emt 0:00:10]} 28. Bxc7 {[%emt 0:00:05]} Bd3 {[%emt 0:01:09]} 29. h3 {[%emt 0:00:28]} Rb1 {[%emt 0:00:06]} 30. Rxb1 {[%emt 0:01:05]} Bxb1 {[%emt 0:00:06]} 31. f3 {[%emt 0:00:34]} h5 {[%emt 0:00:08]} 32. Kf2 {[%emt 0:00:11]} Kf7 {[%emt 0:00:07]} 33. Kg3 {[%emt 0:00:03]} Bd3 {[%emt 0:00:09]} 34. Be5 {[%emt 0:00:06]} g6 {[%emt 0:00:07]} 1/2-1/2